[Event "World U20-ch22"]
[Site "Belfort"]
[Date "1983.08.18"]
[Round "6"]
[White "Condie, Mark L"]
[Black "Dlugy, Maxim"]
[Result "0-1"]
[ECO "A09"]
[WhiteElo "2345"]
[BlackElo "2450"]
[Annotator "Bulletin/Primel,D"]
[PlyCount "62"]
[EventDate "1983.08.12"]
[EventType "swiss"]
[EventRounds "13"]
[EventCountry "FRA"]
[SourceTitle "EXT 2015"]
[Source "ChessBase"]
[SourceDate "2014.11.20"]
[SourceVersion "1"]
[SourceVersionDate "2014.11.20"]
[SourceQuality "1"]
[TimeControl "40/9000:16/5400:0"]

1. Nf3 d5 2. c4 dxc4 3. Qa4+ {Une suite tranquille qui ne pose pas trop de
problèmes aux Noirs} Nc6 {[%cal Ge7e5]} (3... Nd7) (3... c6 4. Qxc4 b5 5. Qc2
Bb7 6. d4 e6 {Transpose sur une Slave}) 4. g3 g6 5. Bg2 Bg7 6. Qxc4 Nf6 (6...
e5 {[%csl Gd4]} 7. Ng5 Nh6 $13 {Markowski,T (2568)-Shirov,A (2746) Rubinstein
Memorial 37th 2000 (3) 0-1}) 7. Nc3 O-O 8. O-O (8. d4 $142 {Transpose dans une
Grunfeld} Be6 {Pachman,L (2515)-Kiffmeyer,C (2320) GER-chT N 7778 1977 (4.1)
0-1}) 8... Nd7 9. d3 Nb6 10. Qh4 {[%cal Gc1h6]} e5 $1 {Pare la menace Bh6} 11.
Bg5 f6 12. Bh6 g5 $1 13. Qh5 Be6 {[%csl Rh5][%cal Ge6f7]} 14. Bxg7 Kxg7 $15 15.
h4 h6 16. Nh2 Bf7 (16... Qd7 {[%csl Gg4]} 17. Be4 Bf7) 17. Qg4 Qe7 18. hxg5
hxg5 19. f4 Be6 $1 20. f5 Bd5 21. e4 $2 {[%csl Rd3]} (21. Bxd5 Nxd5 22. Nxd5
Qc5+ 23. Kg2 Qxd5+ 24. Nf3 $11 {Et les chances sont réciproques}) 21... Bf7
22. Nf3 Rh8 23. Nxg5 Qc5+ 24. d4 Qxd4+ 25. Rf2 fxg5 26. Qxg5+ Kf8 27. Nd5 $2 (
27. f6 Rg8 28. Qh6+ Ke8 29. Rd1) 27... Nxd5 28. exd5 Nb4 29. d6 cxd6 30. Qf6
Rh7 31. Raf1 Nd3 0-1

[Event "Sautron op 18th"]
[Site "Sautron "]
[Date "2018.10.26"]
[Round "7.4"]
[White "Colin, Vincent"]
[Black "Prie, Eric"]
[Result "1/2-1/2"]
[ECO "A09"]
[WhiteElo "2382"]
[BlackElo "2482"]
[Annotator "Primel,D"]
[PlyCount "76"]
[EventDate "2018.10.20"]
[EventType "swiss"]
[EventRounds "9"]
[EventCountry "FRA"]
[SourceTitle "EXT 2021"]
[Source "ChessBase"]
[SourceDate "2020.10.23"]
[SourceVersion "1"]
[SourceVersionDate "2020.10.23"]
[SourceQuality "1"]
[TimeControl "40/5400+30:1800+30"]
[WhiteClock "0:00:37"]
[BlackClock "0:10:16"]

1. Nf3 {[%emt 0:00:00]} d5 {[%emt 0:00:00]} 2. c4 {[%emt 0:00:44]} d4 {[%emt 0:
01:00] La ligne critique} 3. e4 $6 {[%emt 0:03:52]} (3. g3 $142) (3. b4 $142) (
3. e3 $142) 3... Nc6 {[%emt 0:00:10]} 4. d3 {[%emt 0:00:09]} e5 {[%emt 0:00:09]
} 5. g3 {[%emt 0:00:15]} (5. Be2 Be7 6. O-O a5 7. Ne1 Nf6 8. f4 exf4 9. Bxf4
Nd7 10. Bg4 O-O 11. Na3 Nde5 12. Bxc8 Rxc8 13. Nac2 Qd7 14. Qh5 g6 15. Qe2 f6
16. Nf3 Rf7 17. Nxe5 fxe5 18. Bh6 Nd8 19. Bd2 b6 20. b3 Bf6 21. Rf2 Bg7 22.
Raf1 Rxf2 23. Rxf2 Ne6 24. Qg4 Re8 25. h4 Nc5 26. Qxd7 Nxd7 27. Kf1 Bf6 28. g3
Kg7 29. Ke2 Be7 30. Rf1 h6 31. Ra1 Rh8 32. Rh1 Nc5 33. Ne1 Na6 34. Nf3 Bd6 {
Sadovsky,A (2416)-Demidov,M (2534) Moscow 2017 1/2-1/2 (72)}) 5... Be7 {
[%emt 0:07:03]} 6. Bg2 {[%emt 0:01:12]} h5 $1 {[%emt 0:00:41]} 7. h4 $146 {
[%emt 0:00:54]} (7. h3 Be6 8. Na3 h4 9. g4 g5 10. Nc2 a5 11. Bd2 f6 12. O-O Nh6
13. Nfe1 Nf7 14. b3 O-O 15. a3 Nb8 16. b4 b5 17. c5 axb4 18. axb4 Nc6 19. Na3
Qb8 20. Qb1 Qb7 21. Bf3 Ra7 22. Nec2 Rfa8 23. Rc1 Nfd8 24. Qb2 Ra4 25. Ne1 Qa6
26. Nac2 Ba2 27. Bd1 Kg7 28. Ng2 Ne6 29. Nce1 Ra3 30. Kf1 Nf8 31. Ke2 Nd7 32.
Kf1 Ndb8 33. Ke2 Be6 34. Nc2 Ra2 35. Rxa2 Qxa2 36. Qxa2 Rxa2 {Malich,B-Zinn,L
Gera 1962 0-1}) 7... Nf6 {[%emt 0:07:05]} 8. Na3 {[%emt 0:10:34]} Bg4 $132 {
[%emt 0:17:59]} 9. Nc2 {[%emt 0:02:17]} Nd7 {[%emt 0:03:59]} 10. Qd2 {[%emt 0:
05:03] Le signe que les Blancs ont raté l'ouverture} a5 {[%emt 0:05:41]} 11.
Ng5 {[%emt 0:06:05]} Nc5 $1 $15 {[%emt 0:01:56][%csl Gc5]} 12. f3 {[%emt 0:01:
17]} Bd7 {[%emt 0:01:52]} 13. O-O {[%emt 0:01:03]} f6 {[%emt 0:35:16] Il est
rarement bon de réflechir aussi longtemps sur une position et Eric va être
en zeitnot. Les anglais utilisent l'expression "long think bad thing" pour
illustrer les défauts de réflechir trop longtemps au risque d'une analyse
confuse et d'une indécision.} 14. Nh3 {[%emt 0:00:45]} Be6 {[%emt 0:00:54]}
15. f4 {[%emt 0:13:30]} Qd7 {[%emt 0:00:07]} 16. Kh2 {[%emt 0:00:43]} g6 {
[%emt 0:03:56] Joué rapidement alors que la prise ef4 méritait une analyse
plus approfondie} (16... exf4 $1 17. Nxf4 g5 18. Nxe6 Nxe6 19. hxg5 fxg5 $17 {
[%cal Gh5h4,Gh8h2]}) 17. b3 {[%emt 0:03:59]} Bg4 {[%emt 0:00:33]} 18. Bb2 {
[%emt 0:01:43]} O-O-O {[%emt 0:02:10] Les Noirs n'ont plus que 8 mns pour
passer le contrôle de temps} 19. fxe5 {[%emt 0:03:56]} fxe5 {[%emt 0:00:12]}
20. Rf2 {[%emt 0:00:58]} g5 $1 {[%emt 0:01:04]} 21. Nxg5 {[%emt 0:03:46]} Bxg5
{[%emt 0:00:03]} 22. hxg5 {[%emt 0:00:09]} h4 $44 {[%emt 0:00:06]} 23. gxh4 {
[%emt 0:00:07]} Qh7 {[%emt 0:00:23] Joué à tempo alors que la prise de la R
pouvait peut-être permettre de jouer une batterie d'Alekhine} (23... Rxh4+ 24.
Kg1 Rdh8 25. Raf1 {[%cal Gf2f8]} Qg7 26. Rf7 Qh6 27. R1f6 Rh1+ 28. Kf2 Qh4#)
24. Rh1 {[%emt 0:00:05]} Qxh4+ {[%emt 0:00:09]} 25. Kg1 {[%emt 0:00:08]} Qg3 {
[%emt 0:00:08]} 26. Rxh8 {[%emt 0:02:47]} Rxh8 {[%emt 0:00:08]} 27. Ne1 {
[%emt 0:00:13]} Ne6 {[%emt 0:03:02]} 28. Rf6 {[%emt 0:19:03]} Nf4 {[%emt 0:00:
54]} 29. Rh6 {[%emt 0:00:08]} Rf8 {[%emt 0:01:40]} 30. Rf6 {[%emt 0:02:30]} Rg8
{[%emt 0:03:40]} 31. Bc1 {[%emt 0:03:57]} Ne2+ {[%emt 0:01:37]} (31... Nh3+ $5
32. Kf1 Nb4 $40 {[%csl Rf1] Ramène une pièce de plus en attaque}) 32. Kf1 {
[%emt 0:00:22]} Nb4 {[%emt 0:01:21]} 33. a3 {[%emt 0:04:45]} Qh2 $2 {[%emt 0:
00:05]} (33... Nxc1 34. Qxc1 Nxd3 35. Nxd3 Qxd3+ {[%csl Rf1]} 36. Kg1 {Et le K
Blanc reste exposé contrairement à celui des Noirs}) 34. Nf3 {[%emt 0:00:16]}
Ng3+ {[%emt 0:01:17]} 35. Kf2 {[%emt 0:01:12]} Nh1+ {[%emt 0:00:19]} 36. Kf1 {
[%emt 0:00:06]} Ng3+ {[%emt 0:00:36]} 37. Kf2 {[%emt 0:00:06]} Nh1+ {[%emt 0:
00:34]} 38. Kf1 {[%emt 0:00:05]} Ng3+ {[%emt 0:00:34]} 1/2-1/2